fUST/lending_fUST_20250507
["ID","MTS","AMOUNT","RATE_DAILY","PERIOD"]
[360093227,1746547850210,-400.0,0.00019452,2]
[360093229,1746547850220,-462.83,0.00019452,2]
[360093231,1746547850230,-400.0,0.00019452,2]
[360093232,1746547850239,-657.89,0.00019452,2]
[360093234,1746547850249,-400.0,0.00019452,2]
[360093235,1746547850259,-519.67023278,0.00019452,2]
[360093237,1746547850271,-2012.99,0.00019452,2]
[360093239,1746547850292,-400.0,0.00019452,2]
[360093241,1746547850317,-400.0,0.00019452,2]
[360093243,1746547850345,-400.0,0.00019452,2]
[360093245,1746547850376,-538.47,0.00019452,2]
[360093246,1746547850402,-1428.99,0.00019452,2]
[360093248,1746547850425,-483.65,0.00019452,2]
[360093250,1746547850449,-400.0,0.00019452,2]
[360093252,1746547850470,-400.0,0.00019452,2]
[360093253,1746547850493,-400.0,0.00019452,2]
[360093255,1746547850516,-84.32832486,0.00019452,2]
[360093274,1746547850966,-2859.92507705,0.00018,2]
[360093300,1746547851202,-2827.28959688,0.00018,2]
[360093303,1746547851214,-4060.95828957,0.00018,2]
[360093331,1746547851484,-26087.84198769,0.00018,2]
[360093343,1746547851590,-10452.21769303,0.00018,2]
[360097058,1746548373863,-237.798487,0.00017117,2]
[360097059,1746548373884,-179.64071856,0.00017832,2]
[360097060,1746548373909,-4745.33638952,0.000179,2]
[360097061,1746548373930,-500.0,0.00017973,2]
[360097062,1746548373951,-500.0,0.00017973,2]
[360097063,1746548373972,-213.44413004,0.00017973,2]
[360097064,1746548373994,-500.0,0.00017973,2]
[360097065,1746548374015,-500.0,0.00017973,2]
[360097066,1746548374035,-383.88125839,0.00017973,2]
[360097067,1746548374057,-239.89901649,0.0001799,3]
[360097068,1746548548230,1237.305675,0.00027397,120]
[360097086,1746548885600,371.36736338,0.00021,10]
[360097093,1746548914980,670.77002675,0.0001,7]
[360097094,1746548922062,150.999999,0.0002,120]
[360097130,1746549032030,-179.55941,0.00016944,2]
[360097131,1746549032040,-166.1123423,0.00016981,2]
[360097134,1746549032049,-1200.0,0.00016989,2]
[360097136,1746549032059,-19989.6882556,0.0001699,2]
[360097138,1746549032068,-164.80790458,0.000178,7]
[360097140,1746549032078,-1000.0,0.000178,2]
[360097142,1746549032087,-4771.99753698,0.000179,2]
[360097144,1746549032096,-2121.14200088,0.000179,2]
[360097146,1746549032105,-500.0,0.00017973,2]
[360097148,1746549032114,-500.0,0.00017973,2]
[360097150,1746549032127,-500.0,0.00017973,2]
[360097152,1746549032137,-500.0,0.00017973,2]
[360097154,1746549032146,-596.32485293,0.00017973,2]
[360097156,1746549032155,-500.0,0.00017973,2]
[360097158,1746549032165,-607.63677205,0.00017973,2]
[360097160,1746549032174,-500.0,0.00017973,2]
[360097162,1746549032184,-500.0,0.00017973,2]
[360097164,1746549032193,-500.0,0.00017973,2]
[360097166,1746549032202,-500.0,0.00017973,2]
[360097168,1746549032211,-500.0,0.00017973,2]
[360097171,1746549032221,-500.0,0.00017973,2]
[360097174,1746549032230,-500.0,0.00017973,2]
[360097177,1746549032240,-501.03342902,0.00017973,2]
[360097179,1746549032249,-500.0,0.00017973,2]
[360097181,1746549032259,-421.85758914,0.00017973,2]
[360097183,1746549032268,-500.0,0.00017973,2]
[360097185,1746549032277,-500.0,0.00017973,2]
[360097187,1746549032286,-500.0,0.00017973,2]
[360097189,1746549032295,-500.0,0.00017973,2]
[360097191,1746549032305,-500.0,0.00017973,2]
[360097193,1746549032314,-500.0,0.00017973,2]
[360097195,1746549032323,-500.0,0.00017973,2]
[360097197,1746549032332,-500.0,0.00017973,2]
[360097199,1746549032342,-500.0,0.00017973,2]
[360097201,1746549032351,-501.60237653,0.00017973,2]
[360097203,1746549032360,-510.93041603,0.00017973,2]
[360097205,1746549032369,-963.21,0.0001799,3]
[360097207,1746549032378,-481.6,0.0001799,3]
[360097209,1746549032387,-240.8,0.0001799,3]
[360097211,1746549032398,-722.44,0.0001799,3]
[360097213,1746549032407,-21002.83753502,0.00018,2]
[360097779,1746549038102,-302708.92982076,0.00018,2]
[360097780,1746549038112,-5577.32837422,0.00018,2]
[360097781,1746549038128,-58596.35378045,0.00018,2]
[360097784,1746549038140,-29038.31784533,0.00018,2]
[360097786,1746549038149,-292.3039394,0.0001808,2]
[360097788,1746549038158,-2121.14200085,0.00018195,2]
[360097790,1746549038169,-4458.3022082,0.00018485,2]
[360097792,1746549038179,-2121.14200085,0.00018489,2]
[360097794,1746549038188,-191.4,0.00018718,2]
[360097796,1746549038197,-2121.14200085,0.00018784,2]
[360097798,1746549038206,-151.0,0.000188,2]
[360097800,1746549038216,-590.30300277,0.00018855,2]
[360097802,1746549038226,-151.0,0.000189,2]
[360097804,1746549038235,-334320.1124318,0.00018999,2]
[360097806,1746549038248,-40778.53953942,0.00018999,2]
[360097809,1746549038264,-672.24039769,0.00018999,2]
[360097816,1746549038318,-10436.07537109,0.00018999,2]
[360097819,1746549038327,-63509.28817552,0.00019,2]
[360097821,1746549038338,-40594.40228882,0.00019,2]
[360097823,1746549038347,-590.30300277,0.00019063,2]
[360097825,1746549038357,-150.87121571,0.00019078,2]
[360097827,1746549038366,-2121.14200085,0.00019078,2]
[360097829,1746549038376,-151.0,0.000191,2]
[360097831,1746549038385,-166.0,0.00019104,2]
[360097833,1746549038395,-166.0,0.00019104,2]
[360097835,1746549038405,-166.0,0.00019104,2]
[360097837,1746549038414,-166.0,0.00019104,2]
[360097839,1746549038423,-320.0,0.00019104,2]
[360097841,1746549038434,-320.0,0.00019104,2]
[360097843,1746549038444,-320.0,0.00019104,2]
[360097845,1746549038453,-168.49427722,0.00019166,2]
[360097847,1746549038462,-500.0,0.00019173,2]
[360097849,1746549038471,-500.0,0.00019173,2]
[360097851,1746549038481,-500.0,0.00019173,2]
[360097853,1746549038491,-500.0,0.00019173,2]
[360097855,1746549038501,-500.0,0.00019173,2]
[360097857,1746549038510,-500.0,0.00019173,2]
[360097859,1746549038519,-500.0,0.00019173,2]
[360097861,1746549038529,-432.530265,0.00019173,2]
[360097863,1746549038539,-500.0,0.00019173,2]
[360097865,1746549038548,-500.0,0.00019173,2]
[360097867,1746549038559,-500.0,0.00019173,2]
[360097869,1746549038568,-500.0,0.00019173,2]
[360097871,1746549038578,-500.0,0.00019173,2]
[360097873,1746549038588,-500.0,0.00019173,2]
[360097875,1746549038597,-518.51980356,0.00019173,2]
[360097877,1746549038607,-500.0,0.00019173,2]
[360097879,1746549038617,-500.0,0.00019173,2]
[360097881,1746549038626,-500.0,0.00019173,2]
[360097883,1746549038636,-500.0,0.00019173,2]
[360097885,1746549038646,-500.0,0.00019173,2]
[360097887,1746549038655,-502.91977463,0.00019173,2]
[360097889,1746549038665,-500.0,0.00019173,2]
[360097891,1746549038675,-500.0,0.00019173,2]
[360097893,1746549038684,-500.0,0.00019173,2]
[360097895,1746549038694,-500.0,0.00019173,2]
[360097897,1746549038703,-500.0,0.00019173,2]
[360097899,1746549038713,-500.0,0.00019173,2]
[360097901,1746549038723,-500.0,0.00019173,2]
[360097903,1746549038732,-500.0,0.00019173,2]
[360097905,1746549038742,-501.13915385,0.00019173,2]
[360097907,1746549038751,-402.77803583,0.00019178,2]
[360097909,1746549038760,-400.0,0.00019178,2]
[360097911,1746549038769,-400.0,0.00019178,2]
[360097913,1746549038779,-402.47607156,0.00019178,2]
[360097915,1746549038788,-400.0,0.00019178,2]
[360097917,1746549038797,-402.91911364,0.00019178,2]
[360097919,1746549038806,-400.0,0.00019178,2]
[360097921,1746549038817,-400.0,0.00019178,2]
[360097923,1746549038826,-400.0,0.00019178,2]
[360097925,1746549038836,-400.0,0.00019178,2]
[360097927,1746549038846,-400.0,0.00019178,2]
[360097929,1746549038855,-502.39141238,0.00019178,2]
[360097931,1746549038864,-400.0,0.00019178,2]
[360097933,1746549038874,-400.0,0.00019178,2]
[360097935,1746549038884,-327.56483332,0.00019178,2]
[360097937,1746549038893,-400.0,0.00019178,2]
[360097939,1746549038902,-400.0,0.00019178,2]
[360097941,1746549038912,-400.0,0.00019178,2]
[360097943,1746549038921,-400.0,0.00019178,2]
[360097945,1746549038932,-400.0,0.00019178,2]
[360097947,1746549038941,-434.84,0.00019178,2]
[360097949,1746549038951,-400.0,0.00019178,2]
[360097951,1746549038961,-400.0,0.00019178,2]
[360097953,1746549038970,-400.0,0.00019178,2]
[360097955,1746549038979,-514.78859153,0.00019178,2]
[360097957,1746549038989,-1000.0,0.00019178,2]
[360097959,1746549038998,-400.0,0.00019178,2]
[360097961,1746549039007,-400.0,0.00019178,2]
[360097963,1746549039016,-400.0,0.00019178,2]
[360097965,1746549039025,-400.0,0.00019178,2]
[360097967,1746549039034,-400.0,0.00019178,2]
[360097969,1746549039043,-400.0,0.00019178,2]
[360097971,1746549039052,-400.0,0.00019178,2]
[360097973,1746549039062,-400.0,0.00019178,2]
[360097975,1746549039071,-400.0,0.00019178,2]
[360097977,1746549039080,-267.4974309,0.00019178,2]
[360097979,1746549039092,-400.0,0.00019178,2]
[360097981,1746549039101,-400.0,0.00019178,2]
[360097983,1746549039110,-400.0,0.00019178,2]
[360097985,1746549039119,-400.0,0.00019178,2]
[360097987,1746549039131,-666.96,0.00019178,2]
[360097989,1746549039140,-400.0,0.00019178,2]
[360097991,1746549039149,-250.28177358,0.00019178,2]
[360097993,1746549039158,-400.0,0.00019178,2]
[360097995,1746549039167,-520.09874239,0.00019178,2]
[360097997,1746549039177,-400.0,0.00019178,2]
[360097999,1746549039186,-506.24899933,0.00019178,2]
[360098001,1746549039195,-400.0,0.00019178,2]
[360098003,1746549039205,-400.0,0.00019178,2]
[360098005,1746549039214,-400.0,0.00019178,2]
[360098007,1746549039223,-400.0,0.00019178,2]
[360098009,1746549039232,-400.0,0.00019178,2]
[360098011,1746549039241,-400.0,0.00019178,2]
[360098013,1746549039251,-400.0,0.00019178,2]
[360098015,1746549039259,-404.44071544,0.00019178,2]
[360098017,1746549039269,-400.0,0.00019178,2]
[360098019,1746549039278,-400.0,0.00019178,2]
[360098020,1746549039288,-332.90977984,0.00019178,2]
[360098022,1746549039297,-400.0,0.00019178,2]
[360098024,1746549039306,-400.0,0.00019178,2]
[360098027,1746549039316,-217.8951033,0.00019178,2]
[360098028,1746549039326,-400.0,0.00019178,2]
[360098030,1746549039336,-400.0,0.00019178,2]
[360098032,1746549039345,-400.0,0.00019178,2]
[360098034,1746549039354,-408.95706626,0.00019178,2]
[360098036,1746549039363,-418.11095225,0.00019178,2]
[360098039,1746549039372,-400.0,0.00019178,2]
[360098040,1746549039381,-400.0,0.00019178,2]
[360098043,1746549039391,-400.0,0.00019178,2]
[360098045,1746549039401,-208.44611728,0.00019178,2]
[360098046,1746549039410,-403.64686653,0.00019178,2]
[360098048,1746549039421,-400.0,0.00019178,2]
[360098050,1746549039430,-505.07806577,0.00019178,2]
[360098052,1746549039439,-400.86104084,0.00019178,2]
[360098054,1746549039450,-400.0,0.00019178,2]
[360098056,1746549039459,-176.15756633,0.00019178,2]
[360098058,1746549039468,-400.0,0.00019178,2]
[360098060,1746549039477,-400.0,0.00019178,2]
[360098062,1746549039486,-400.0,0.00019178,2]
[360098064,1746549039496,-400.0,0.00019178,2]
[360098066,1746549039505,-400.0,0.00019178,2]
[360098068,1746549039515,-400.0,0.00019178,2]
[360098070,1746549039525,-400.0,0.00019178,2]
[360098072,1746549039534,-400.0,0.00019178,2]
[360098074,1746549039543,-400.0,0.00019178,2]
[360098076,1746549039552,-400.0,0.00019178,2]
[360098098,1746549039562,-400.0,0.00019178,2]
[360098100,1746549039715,-405.32755235,0.00019178,2]
[360098102,1746549039724,-400.0,0.00019178,2]
[360098104,1746549039733,-401.67160681,0.00019178,2]
[360098106,1746549039743,-400.0,0.00019178,2]
[360098108,1746549039752,-505.38791715,0.00019178,2]
[360098110,1746549039762,-400.0,0.00019178,2]
[360098112,1746549039771,-400.0,0.00019178,2]
[360098114,1746549039781,-400.0,0.00019178,2]
[360098117,1746549039790,-176.52210069,0.00019178,2]
[360098119,1746549039800,-400.0,0.00019178,2]
[360098122,1746549039809,-400.0,0.00019178,2]
[360098124,1746549039818,-400.0,0.00019178,2]
[360098126,1746549039828,-400.0,0.00019178,2]
[360098128,1746549039839,-186.25005525,0.00019178,2]
[360098130,1746549039848,-400.0,0.00019178,2]
[360098132,1746549039857,-401.58873496,0.00019178,2]
[360098134,1746549039867,-360.81304676,0.00019178,2]
[360098135,1746549039876,-400.0,0.00019178,2]
[360098137,1746549039885,-400.0,0.00019178,2]
[360098139,1746549039895,-400.0,0.00019178,2]
[360098141,1746549039905,-537.8,0.00019178,2]
[360098143,1746549039914,-753.36,0.00019178,2]
[360098145,1746549039923,-400.0,0.00019178,2]
[360098147,1746549039933,-409.61226827,0.00019178,2]
[360098149,1746549039942,-464.71,0.00019178,2]
[360098151,1746549039951,-490.57,0.00019178,2]
[360098153,1746549039960,-431.81714596,0.00019178,2]
[360098155,1746549039970,-400.0,0.00019178,2]
[360098157,1746549039979,-400.0,0.00019178,2]
[360098159,1746549039988,-400.0,0.00019178,2]
[360098161,1746549039998,-400.0,0.00019178,2]
[360098163,1746549040007,-400.0,0.00019178,2]
[360098165,1746549040017,-400.0,0.00019178,2]
[360098167,1746549040026,-400.0,0.00019178,2]
[360098169,1746549040035,-1175.32,0.00019178,2]
[360098171,1746549040045,-732.9,0.00019178,2]
[360098173,1746549040054,-400.0,0.00019178,2]
[360098175,1746549040063,-400.0,0.00019178,2]
[360098177,1746549040073,-405.8713486,0.00019178,2]
[360098179,1746549040082,-400.0,0.00019178,2]
[360098181,1746549040093,-401.53584369,0.00019178,2]
[360098183,1746549040103,-400.0,0.00019178,2]
[360098185,1746549040112,-220.53743959,0.00019178,2]
[360098187,1746549040125,-460.40549829,0.00019178,2]
[360098189,1746549040135,-400.0,0.00019178,2]
[360098191,1746549040144,-402.9905216,0.00019178,2]
[360098193,1746549040154,-400.0,0.00019178,2]
[360098195,1746549040164,-400.0,0.00019178,2]
[360098197,1746549040173,-400.0,0.00019178,2]
[360098199,1746549040183,-513.7459558,0.00019178,2]
[360098201,1746549040192,-400.0,0.00019178,2]
[360098203,1746549040201,-403.14127598,0.00019178,2]
[360098205,1746549040211,-475.82,0.00019178,2]
[360098207,1746549040221,-400.0,0.00019178,2]
[360098209,1746549040230,-400.0,0.00019178,2]
[360098211,1746549040239,-400.0,0.00019178,2]
[360098213,1746549040249,-400.0,0.00019178,2]
[360098215,1746549040258,-400.0,0.00019178,2]
[360098217,1746549040268,-206.0059834,0.00019178,2]
[360098219,1746549040278,-410.28,0.00019178,2]
[360098221,1746549040287,-402.10659483,0.00019178,2]
[360098223,1746549040296,-406.79252526,0.00019178,2]
[360098225,1746549040306,-400.0,0.00019178,2]
[360098227,1746549040315,-400.0,0.00019178,2]
[360098229,1746549040324,-400.0,0.00019178,2]
[360098231,1746549040335,-502.8703402,0.00019178,2]
[360098234,1746549040345,-403.34010556,0.00019178,2]
[360098236,1746549040355,-400.0,0.00019178,2]
[360098238,1746549040364,-400.0,0.00019178,2]
[360098240,1746549040374,-401.42416385,0.00019178,2]
[360098242,1746549040384,-400.0,0.00019178,2]
[360098244,1746549040393,-400.0,0.00019178,2]
[360098246,1746549040402,-481.53152116,0.00019178,2]
[360098248,1746549040412,-400.0,0.00019178,2]
[360098249,1746549040422,-400.0,0.00019178,2]
[360098250,1746549040431,-449.36,0.00019178,2]
[360098251,1746549040440,-420.81417445,0.00019178,2]
[360098252,1746549040449,-400.0,0.00019178,2]
[360098253,1746549040459,-533.45,0.00019178,2]
[360098255,1746549040468,-501.60716646,0.00019178,2]
[360098257,1746549040477,-516.03,0.00019178,2]
[360098259,1746549040486,-400.0,0.00019178,2]
[360098261,1746549040496,-400.0,0.00019178,2]
[360098263,1746549040505,-1008.95,0.00019178,2]
[360098265,1746549040514,-153.94588979,0.00019178,2]
[360098267,1746549040523,-400.0,0.00019178,2]
[360098269,1746549040532,-400.0,0.00019178,2]
[360098271,1746549040542,-502.1374089,0.00019178,2]
[360098273,1746549040551,-400.0,0.00019178,2]
[360098275,1746549040561,-400.0,0.00019178,2]
[360098277,1746549040570,-400.0,0.00019178,2]
[360098279,1746549040580,-502.34032409,0.00019178,2]
[360098281,1746549040590,-400.0,0.00019178,2]
[360098283,1746549040599,-400.0,0.00019178,2]
[360098285,1746549040609,-400.0,0.00019178,2]
[360098287,1746549040618,-400.0,0.00019178,2]
[360098289,1746549040627,-1550.82,0.00019178,2]
[360098291,1746549040636,-403.34072284,0.00019178,2]
[360098293,1746549040645,-500.0,0.00019178,2]
[360098295,1746549040655,-400.0,0.00019178,2]
[360098297,1746549040665,-558.6,0.00019178,2]
[360098299,1746549040675,-400.0,0.00019178,2]
[360098301,1746549040684,-400.0,0.00019178,2]
[360098303,1746549040694,-400.0,0.00019178,2]
[360098305,1746549040703,-400.17178998,0.00019178,2]
[360098307,1746549040712,-400.0,0.00019178,2]
[360098309,1746549040721,-503.78798685,0.00019178,2]
[360098311,1746549040731,-400.0,0.00019178,2]
[360098313,1746549040740,-501.97207744,0.00019178,2]
[360098315,1746549040750,-400.0,0.00019178,2]
[360098317,1746549040759,-400.0,0.00019178,2]
[360098319,1746549040768,-402.94644609,0.00019178,2]
[360098321,1746549040777,-473.40339252,0.00019178,2]
[360098323,1746549040786,-400.0,0.00019178,2]
[360098325,1746549040795,-209.64157535,0.00019178,2]
[360098327,1746549040804,-500.0,0.00019178,2]
[360098329,1746549040813,-400.0,0.00019178,2]
[360098331,1746549040822,-400.0,0.00019178,2]
[360098333,1746549040832,-400.0,0.00019178,2]
[360098335,1746549040842,-400.0,0.00019178,2]
[360098337,1746549040851,-400.0,0.00019178,2]
[360098339,1746549040860,-502.79430711,0.00019178,2]
[360098341,1746549040869,-400.0,0.00019178,2]
[360098343,1746549040879,-400.0,0.00019178,2]
[360098345,1746549040888,-1929.11,0.00019178,2]
[360098347,1746549040897,-400.0,0.00019178,2]
[360098350,1746549040907,-400.0,0.00019178,2]
[360098352,1746549040917,-400.0,0.00019178,2]
[360098354,1746549040928,-257.3214084,0.00019178,2]
[360098356,1746549040938,-844.65,0.00019178,2]
[360098358,1746549040947,-503.10174603,0.00019178,2]
[360098359,1746549040957,-1369.45,0.00019178,2]
[360098362,1746549040966,-585.18,0.00019178,2]
[360098363,1746549040975,-400.0,0.00019178,2]
[360098365,1746549040983,-400.0,0.00019178,2]
[360098367,1746549040992,-400.0,0.00019178,2]
[360098369,1746549041002,-598.99,0.00019178,2]
[360098371,1746549041011,-400.0,0.00019178,2]
[360098373,1746549041020,-1026.77,0.00019178,2]
[360098375,1746549041029,-400.0,0.00019178,2]
[360098377,1746549041038,-400.0,0.00019178,2]
[360098379,1746549041047,-534.54,0.00019178,2]
[360098381,1746549041057,-400.0,0.00019178,2]
[360098383,1746549041066,-400.0,0.00019178,2]
[360098385,1746549041075,-642.63,0.00019178,2]
[360098387,1746549041084,-400.0,0.00019178,2]
[360098390,1746549041095,-474.87,0.00019178,2]
[360098392,1746549041104,-400.0,0.00019178,2]
[360098394,1746549041114,-400.0,0.00019178,2]
[360098396,1746549041128,-503.55866188,0.00019178,2]
[360098398,1746549041137,-400.0,0.00019178,2]
[360098400,1746549041146,-400.0,0.00019178,2]
[360098402,1746549041155,-400.0,0.00019178,2]
[360098404,1746549041165,-400.0,0.00019178,2]
[360098406,1746549041176,-400.0,0.00019178,2]
[360098408,1746549041185,-400.0,0.00019178,2]
[360098410,1746549041194,-608.74,0.00019178,2]
[360098412,1746549041204,-2938.9,0.00019178,2]
[360098414,1746549041213,-401.97286654,0.00019178,2]
[360098416,1746549041222,-400.0,0.00019178,2]
[360098418,1746549041231,-405.98412562,0.00019178,2]
[360098420,1746549041241,-235.51168844,0.00019178,2]
[360098422,1746549041250,-400.76641592,0.00019178,2]
[360098424,1746549041259,-400.0,0.00019178,2]
[360098426,1746549041268,-400.0,0.00019178,2]
[360098428,1746549041277,-400.0,0.00019178,2]
[360098430,1746549041286,-400.0,0.00019178,2]
[360098432,1746549041296,-400.0,0.00019178,2]
[360098434,1746549041305,-400.0,0.00019178,2]
[360098436,1746549041314,-289.66766909,0.00019178,2]
[360098438,1746549041323,-400.0,0.00019178,2]
[360098440,1746549041332,-400.0,0.00019178,2]
[360098442,1746549041345,-400.0,0.00019178,2]
[360098444,1746549041354,-400.0,0.00019178,2]
[360098446,1746549041363,-400.0,0.00019178,2]
[360098448,1746549041372,-400.0,0.00019178,2]
[360098450,1746549041381,-400.0,0.00019178,2]
[360098452,1746549041391,-400.0,0.00019178,2]
[360098454,1746549041400,-400.0,0.00019178,2]
[360098456,1746549041409,-400.0,0.00019178,2]
[360098458,1746549041418,-400.0,0.00019178,2]
[360098460,1746549041427,-1181.51,0.00019178,2]
[360098462,1746549041436,-1181.51,0.00019178,2]
[360098464,1746549041444,-1181.51,0.00019178,2]
[360098466,1746549041452,-1181.51,0.00019178,2]
[360098468,1746549041461,-1181.51,0.00019178,2]
[360098470,1746549041470,-1181.51,0.00019178,2]
[360098472,1746549041478,-282.09599566,0.00019178,2]
[360098474,1746549041487,-1181.51,0.00019178,2]
[360098476,1746549041496,-1181.51,0.00019178,2]
[360098478,1746549041505,-1181.51,0.00019178,2]
[360098480,1746549041514,-1181.51,0.00019178,2]
[360098482,1746549041523,-1181.51,0.00019178,2]
[360098484,1746549041532,-1181.51,0.00019178,2]
[360098486,1746549041542,-1181.51,0.00019178,2]
[360098488,1746549041551,-1181.51,0.00019178,2]
[360098490,1746549041560,-1181.51,0.00019178,2]
[360098492,1746549041570,-1181.51,0.00019178,2]
[360098494,1746549041579,-1181.51,0.00019178,2]
[360098496,1746549041590,-1181.51,0.00019178,2]
[360098498,1746549041599,-400.0,0.00019178,2]
[360098500,1746549041608,-1181.51,0.00019178,2]
[360098502,1746549041618,-400.0,0.00019178,2]
[360098504,1746549041630,-1181.51,0.00019178,2]
[360098506,1746549041639,-401.94674852,0.00019178,2]
[360098508,1746549041649,-1181.51,0.00019178,2]
[360098510,1746549041658,-1181.51,0.00019178,2]
[360098512,1746549041668,-400.0,0.00019178,2]
[360098514,1746549041677,-1181.51,0.00019178,2]
[360098516,1746549041686,-1181.642461,0.00019178,2]
[360098518,1746549041695,-407.37330949,0.00019178,2]
[360098520,1746549041705,-400.0,0.00019178,2]
[360098522,1746549041715,-867.86,0.00019178,2]
[360098524,1746549041725,-400.0,0.00019178,2]
[360098526,1746549041734,-400.0,0.00019178,2]
[360098528,1746549041743,-400.0,0.00019178,2]
[360098530,1746549041752,-400.0,0.00019178,2]
[360098532,1746549041761,-403.25345902,0.00019178,2]
[360098534,1746549041770,-400.0,0.00019178,2]
[360098536,1746549041780,-400.0,0.00019178,2]
[360098538,1746549041790,-400.0,0.00019178,2]
[360098540,1746549041800,-400.0,0.00019178,2]
[360098542,1746549041809,-888.26,0.00019178,2]
[360098544,1746549041819,-400.0,0.00019178,2]
[360098546,1746549041829,-400.0,0.00019178,2]
[360098548,1746549041840,-1593.73,0.00019178,2]
[360098550,1746549041849,-400.0,0.00019178,2]
[360098552,1746549041859,-400.58940427,0.00019178,2]
[360098554,1746549041868,-400.0,0.00019178,2]
[360098556,1746549041878,-411.87,0.00019178,2]
[360098559,1746549041887,-400.0,0.00019178,2]
[360098561,1746549041897,-400.0,0.00019178,2]
[360098563,1746549041905,-400.0,0.00019178,2]
[360098565,1746549041915,-400.0,0.00019178,2]
[360098567,1746549041924,-400.0,0.00019178,2]
[360098569,1746549041933,-205.07269539,0.00019178,2]
[360098571,1746549041943,-229.43161492,0.00019178,2]
[360098573,1746549041953,-1095.13,0.00019178,2]
[360098575,1746549041962,-400.0,0.00019178,2]
[360098577,1746549041971,-5053.1,0.00019178,2]
[360098579,1746549041981,-400.0,0.00019178,2]
[360098581,1746549041990,-417.89,0.00019178,2]
[360098583,1746549042000,-400.0,0.00019178,2]
[360098597,1746549042127,-400.0,0.00019178,2]
[360098599,1746549042137,-400.0,0.00019178,2]
[360098601,1746549042146,-400.0,0.00019178,2]
[360098603,1746549042155,-400.0,0.00019178,2]
[360098605,1746549042164,-400.0,0.00019178,2]
[360098607,1746549042173,-400.0,0.00019178,2]
[360098609,1746549042183,-400.0,0.00019178,2]
[360098611,1746549042192,-400.0,0.00019178,2]
[360098613,1746549042202,-500.0,0.00019178,2]
[360098615,1746549042211,-500.0,0.00019178,2]
[360098617,1746549042221,-516.26450725,0.00019178,2]
[360098619,1746549042230,-500.0,0.00019178,2]
[360098620,1746549042240,-208.60332497,0.00019178,2]
[360098621,1746549042249,-400.0,0.00019178,2]
[360098622,1746549042258,-374.12205141,0.00019178,2]
[360098623,1746549042267,-400.0,0.00019178,2]
[360098624,1746549042277,-2590.38,0.00019178,2]
[360098625,1746549042286,-400.0,0.00019178,2]
[360098626,1746549042296,-400.0,0.00019178,2]
[360098627,1746549042306,-400.0,0.00019178,2]
[360098628,1746549042315,-400.0,0.00019178,2]
[360098629,1746549042325,-400.0,0.00019178,2]
[360098630,1746549042334,-400.0,0.00019178,2]
[360098631,1746549042344,-1308.2,0.00019178,2]
[360098632,1746549042353,-400.0,0.00019178,2]
[360098633,1746549042363,-400.0,0.00019178,2]
[360098634,1746549042372,-1172.28,0.00019178,2]
[360098635,1746549042382,-400.0,0.00019178,2]
[360098636,1746549042392,-400.0,0.00019178,2]
[360098637,1746549042402,-400.0,0.00019178,2]
[360098638,1746549042412,-400.0,0.00019178,2]
[360098639,1746549042421,-233.76033808,0.00019178,2]